[Event "44th Chess Olympiad Open 2022"]
[Site "Chennai"]
[Date "2022.08.02"]
[Round "5.10"]
[White "Kollars, Dmitrij"]
[Black "Dobrovoljc, Vid"]
[Result "1-0"]
[WhiteElo "2648"]
[BlackElo "2398"]
[Annotator "TA"]
[PlyCount "125"]
[EventDate "2022.??.??"]
[TimeControl "60"]

{[%evp 14,125,37,26,27,29,16,10,12,6,7,9,5,14,39,50,34,36,37,50,39,47,44,15,66,
64,86,43,43,43,63,57,88,83,89,49,50,50,50,50,48,54,66,67,65,67,66,70,67,72,78,
50,86,75,78,81,82,82,82,89,95,84,84,26,48,48,86,85,83,79,89,91,83,87,307,304,
314,241,568,193,287,259,1100,1115,782,724,1474,1394,7602,6115,8731,8752,8658,
8627,8479,8410,8206,7536,7141,6460,4945,2282,10067,7597,29970,29971,29971,
29971,29971,29972,29973,29971,29976,29977]} 1. e4 {[%emt 0:00:06]} e5 {[%emt 0:
00:00]} 2. Nf3 {[%emt 0:00:07]} Nc6 {[%emt 0:00:16]} 3. Bc4 {[%emt 0:00:16]}
Nf6 {[%emt 0:00:32]} 4. Ng5 {[%emt 0:00:17]} d5 {[%emt 0:00:09]} 5. exd5 {
[%emt 0:00:07]} Na5 {[%emt 0:00:08]} 6. Bb5+ {[%emt 0:00:10]} c6 {[%emt 0:00:
00]} 7. dxc6 {[%emt 0:00:12]} bxc6 {[%emt 0:00:03]} 8. Bd3 $1 {[%emt 0:00:15]
is more profitable than 8.Be2 at the moment.} Nd5 {[%emt 0:00:38] C58: Two
Knights: 4 Ng5 d5 5 exd5 Na5 sidelines.} 9. Nf3 {[%emt 0:00:30]} ({Inferior is
} 9. Qh5 g6 10. Nxf7 gxh5 $17) 9... Bd6 {[%emt 0:02:29]} 10. Nc3 {[%emt 0:00:
22]} f5 {[%emt 0:06:23] The position is equal.} 11. Nxd5 {[%emt 0:00:00]} cxd5
{[%emt 0:02:03]} 12. b4 {[%emt 0:00:20]} Nc6 {[%emt 0:28:22]} 13. Bb5 {[%emt 0:
00:38]} Qb6 {[%emt 0:02:36]} 14. Bxc6+ {[%emt 0:12:34]} Qxc6 {[%emt 0:00:20]}
15. Bb2 {[%emt 0:00:11]} d4 {[%emt 0:05:42]} 16. O-O {[%emt 0:00:00][%cal
Yf3e5]} O-O {[%emt 0:05:28]} 17. c3 {[%emt 0:03:17]} Ba6 {[%emt 0:00:00]} 18.
Re1 {[%emt 0:10:49] [#]} dxc3 $146 {[%emt 0:07:18]} (18... e4 $1 $11 19. Nxd4
Qd5) ({Predecessor:} 18... Qd5 19. cxd4 e4 20. Ne5 Bb7 21. Bc3 Bc7 22. Qe2 Rac8
23. a4 Bb6 24. Qe3 f4 {1-0 (40) Socko,B (2617)-Kaczur,F (2479) Montesilvano
2021}) 19. Qb3+ $14 {[%emt 0:12:54]} Qc4 {[%emt 0:08:48]} 20. Bxc3 {[%emt 0:03:
05]} e4 {[%emt 0:00:49]} 21. Nd4 {[%emt 0:00:16]} Qxb3 {[%emt 0:00:00]} 22.
axb3 {[%emt 0:00:12]} Bd3 {[%emt 0:04:34]} 23. Ra5 {[%emt 0:00:20]} g6 {
[%emt 0:01:06]} 24. Rea1 {[%emt 0:01:48]} Rf7 {[%emt 0:02:46]} 25. Nc6 {
[%emt 0:03:45][%cal Rc6a7]} Rb7 {[%emt 0:01:32]} 26. Rd5 {[%emt 0:18:35]} Bf8 {
[%emt 0:01:34]} 27. h4 {[%emt 0:00:37]} Rb6 {[%emt 0:03:40]} 28. Ne5 {[%emt 0:
00:00] White is more active.} Bxb4 {[%emt 0:02:09]} 29. Nxd3 {[%emt 0:01:46]} (
29. Nd7 {seems wilder.} Rb7 30. Bxb4 Rxb4 31. Rc1) 29... exd3 {[%emt 0:03:06]}
30. Rxd3 {[%emt 0:00:26]} Bxc3 {[%emt 0:00:55]} 31. Rxc3 {[%emt 0:00:05]
Endgame KRR-KRR} ({Much worse is} 31. dxc3 Rxb3 32. Ra5 a6 $11) 31... Rb7 {
[%emt 0:01:07]} 32. h5 {[%emt 0:01:55]} Kg7 {[%emt 0:00:14]} 33. hxg6 {[%emt 0:
01:58]} hxg6 {[%emt 0:00:05]} 34. Ra6 {[%emt 0:00:02]} Rb6 {[%emt 0:00:00]} 35.
Rxb6 {[%emt 0:02:04]} axb6 $16 {[%emt 0:00:03] KR-KR} 36. Kf1 {[%emt 0:00:04]}
Ra1+ {[%emt 0:00:31]} 37. Ke2 {[%emt 0:00:03]} Rb1 {[%emt 0:00:00]} 38. f4 {
[%emt 0:02:35]} ({Better is} 38. Ke3 $16) 38... Rg1 {[%emt 0:00:00]} 39. Rg3 {
[%emt 0:02:40]} Kf6 {[%emt 0:00:52]} 40. Kd3 {[%emt 0:03:41]} Rf1 {[%emt 0:00:
44] [#]} 41. Rf3 $1 {[%emt 0:35:40]} Rg1 {[%emt 0:07:17]} 42. g3 {[%emt 0:00:
00] Threatens to win with Kc3.} Rc1 {[%emt 0:01:07]} 43. Kd4 {[%emt 0:00:00]
Kd5 is the strong threat.} Rc8 $2 {[%emt 0:00:24] A mistake that costs the
game.} (43... Rc2 $16) 44. Kd5 $18 {[%emt 0:00:00]} g5 {[%emt 0:00:00]} 45. d4
{[%emt 0:00:00] [#] Black must now prevent fxg5+.} b5 $2 {[%emt 0:03:25]} (
45... g4 {is a better chance.} 46. Re3 b5) 46. Re3 $2 {[%emt 0:00:00]} (46.
fxg5+ Kg6 47. Ke6 Rc6+ 48. Ke5) 46... b4 {[%emt 0:01:15]} (46... g4 $142 47.
Re6+ Kf7) 47. Re6+ {[%emt 0:00:00]} Kf7 $2 {[%emt 0:00:18]} (47... Kg7 48. Rb6
(48. fxg5 Rc3 $16) 48... Rc3) 48. fxg5 {[%emt 0:00:00]} Rc3 {[%emt 0:00:06]}
49. Rf6+ {[%emt 0:00:00]} Ke7 {[%emt 0:01:33]} 50. Rxf5 {[%emt 0:00:00] aiming
for g4.} Rxb3 {[%emt 0:00:07]} 51. Kc4 {[%emt 0:00:00]} Rxg3 {[%emt 0:00:33]}
52. Kxb4 {[%emt 0:00:00]} Ke6 {[%emt 0:00:24]} 53. Re5+ {[%emt 0:00:00]} Kd6 {
[%emt 0:00:06]} 54. Kc4 {[%emt 0:00:00]} Rg4 {[%emt 0:00:00]} 55. Ra5 {[%emt 0:
00:00]} Kd7 {[%emt 0:03:55]} 56. Kd3 {[%emt 0:00:13]} Ke7 {[%emt 0:00:37]} 57.
Ke3 {[%emt 0:00:49]} Kd7 {[%emt 0:05:17]} 58. Rd5+ {[%emt 0:01:04]} Kc6 {
[%emt 0:00:08]} 59. Kf3 {[%emt 0:01:00] White mates.} Rg1 {[%emt 0:02:08]} 60.
Re5 {[%emt 0:00:24]} Kd6 {[%emt 0:00:11]} 61. Kf4 {[%emt 0:00:42]} Rd1 {
[%emt 0:00:37]} 62. Ke4 {[%emt 0:00:19]} Rf1 {[%emt 0:00:00]} 63. g6 {[%emt 0:
00:18] Weighted Error Value: White=0.18 (very precise) / Black=0.33} 1-0

[Event "44th Chess Olympiad Open 2022"]
[Site "Chennai"]
[Date "2022.08.02"]
[Round "5.10"]
[White "Subelj, Jan"]
[Black "Keymer, Vincent"]
[Result "0-1"]
[WhiteElo "2498"]
[BlackElo "2686"]
[Annotator "TA"]
[PlyCount "114"]
[EventDate "2022.??.??"]
[TimeControl "60"]

{[%evp 9,114,16,25,8,24,28,13,19,49,48,52,50,55,42,50,43,50,38,40,40,58,38,40,
35,35,16,24,18,15,0,8,0,0,0,0,0,0,0,0,0,0,0,0,-169,-161,-152,-56,-59,-41,-94,
-95,-116,-113,-106,-106,-115,-107,-127,-123,-127,-127,-127,-127,-125,-117,-97,
-89,-87,-79,-128,-128,-128,-128,-128,-128,-170,-161,-223,-216,-403,-387,-560,
-554,-581,-549,-29963,-29967,-29974,-29975,-29975,-29976,-29970,-1149,-29985,
-29986,-29985,-29985,-29986,-29987,-29987,-29988,-29988,-29989,-29989,-29990,
-29991,-29992]} 1. e4 {[%emt 0:00:06]} c5 {[%emt 0:00:04]} 2. Nf3 {[%emt 0:00:
00]} d6 {[%emt 0:00:04]} 3. Bb5+ {[%emt 0:00:45]} Nd7 {[%emt 0:00:04]} 4. d4 {
[%emt 0:01:37]} cxd4 {[%emt 0:00:05]} 5. Nxd4 {[%emt 0:00:30]} Ngf6 {[%emt 0:
00:00]} 6. O-O {[%emt 0:01:32] B51: Sicilian: Moscow Variation (3 Bb5+)
without 3...Bd7.} g6 {[%emt 0:06:21]} 7. Re1 {[%emt 0:02:48]} Bg7 {[%emt 0:00:
00]} 8. Bf1 {[%emt 0:01:36] The position is equal.} Nc5 {[%emt 0:10:30]} 9. f3
{[%emt 0:14:06] [#]} O-O $146 {[%emt 0:02:34]} ({Predecessor:} 9... Qb6 10. c3
O-O 11. Na3 a6 12. Nc4 Qc7 13. Ne3 b5 14. b3 Bb7 15. Ba3 Rac8 {0-1 (36) Xiong,
J (2691)-Rapport,R (2764) chess24.com INT 2022}) 10. Be3 {[%emt 0:04:19]} Ne6 {
[%emt 0:10:08]} 11. c4 {[%emt 0:03:14]} Nxd4 {[%emt 0:08:20]} 12. Bxd4 {
[%emt 0:00:12]} Be6 {[%emt 0:00:58]} 13. Nc3 {[%emt 0:01:09]} Qa5 {[%emt 0:00:
00]} 14. Nd5 {[%emt 0:06:06]} Bxd5 {[%emt 0:02:05]} 15. exd5 {[%emt 0:01:05]}
Rfe8 {[%emt 0:01:06]} 16. Kh1 {[%emt 0:11:56]} Nh5 {[%emt 0:09:31]} 17. Re3 {
[%emt 0:05:46]} Bxd4 {[%emt 0:01:24]} 18. Qxd4 {[%emt 0:00:06]} Ng7 {[%emt 0:
00:00]} 19. Re4 {[%emt 0:12:25]} Rad8 {[%emt 0:04:23]} 20. a3 {[%emt 0:02:59]}
e5 {[%emt 0:03:25]} 21. dxe6 {[%emt 0:00:12]} Rxe6 {[%emt 0:00:29]} 22. b4 {
[%emt 0:03:10]} Rxe4 {[%emt 0:02:22]} 23. Qxe4 {[%emt 0:02:22]} Qb6 {[%emt 0:
00:00]} 24. Rd1 {[%emt 0:02:11]} Re8 {[%emt 0:00:48]} 25. Qf4 {[%emt 0:00:35]}
Nf5 {[%emt 0:02:40]} 26. Bd3 $2 {[%emt 0:00:22]} (26. c5 $11 Qc6 27. cxd6)
26... Qf2 $1 $19 {[%emt 0:03:09]} 27. Qc1 {[%emt 0:07:56]} Ne3 {[%emt 0:06:03]
Against Rf1.0x0.001989f0fb3ddp-1022s more active pieces.} (27... Nh4 $1 $17 {
[%csl Gh4][%cal Rf2g2]} 28. Bf1 Re2 $1) 28. Rd2 $15 {[%emt 0:00:43]} Ng4 {
[%emt 0:00:26]} 29. Be4 {[%emt 0:03:31]} (29. Rxf2 $2 Nxf2+ 30. Kg1 Nxd3 $19) (
{Better is} 29. Rd1 $1 $15 Ne3 30. Rd2) 29... Qe3 $17 {[%emt 0:05:05] ( -> ...
Nf2+)} 30. fxg4 {[%emt 0:00:54][%cal Yd2d1]} Rxe4 {[%emt 0:00:05]} ({Stronger
than} 30... Qxe4 31. h3 $15) 31. h3 {[%emt 0:01:33] [#]} Rxc4 $3 {[%emt 0:00:
00]} 32. Qxc4 {[%emt 0:00:09] Hoping for Re2.} Qxd2 {[%emt 0:00:03] Endgame
KQ-KQ} 33. Qc8+ {[%emt 0:00:24]} Kg7 {[%emt 0:00:05]} 34. Qxb7 {[%emt 0:00:06]}
Qc1+ {[%emt 0:01:26]} 35. Kh2 {[%emt 0:00:04]} Qxa3 {[%emt 0:00:04]} 36. Qb8 {
[%emt 0:01:46]} Qa6 {[%emt 0:00:53]} 37. Qc7 {[%emt 0:00:00]} h6 {[%emt 0:02:
27]} 38. Qc3+ {[%emt 0:00:16]} Kg8 {[%emt 0:00:05]} 39. Qc7 {[%emt 0:03:21]} ({
White should try} 39. Qd2) 39... Qb6 {[%emt 0:02:46]} 40. Qc8+ {[%emt 0:00:51]}
Kg7 {[%emt 0:00:05]} 41. Qc3+ {[%emt 0:30:15] [#]} Kh7 $1 {[%emt 0:30:48]} 42.
Qf6 {[%emt 0:00:00]} Kg8 {[%emt 0:00:00]} 43. Qf4 {[%emt 0:00:00]} (43. Qf3
$142) 43... d5 $19 {[%emt 0:00:00] White must now prevent ...d4.} 44. h4 $2 {
[%emt 0:00:00]} (44. Qd2 {keeps fighting.} Qd6+ 45. Kg1) 44... d4 {[%emt 0:00:
00]} 45. h5 {[%emt 0:00:00]} (45. Qxh6 {is a better defense.} Qxb4 46. Qf4)
45... g5 {[%emt 0:00:00]} 46. Qd2 {[%emt 0:00:00]} Qc7+ {[%emt 0:00:00]} 47. g3
{[%emt 0:00:00]} Qc3 {[%emt 0:00:00]} 48. Qf2 {[%emt 0:00:00]} d3 {[%emt 0:00:
00]} 49. Qe3 {[%emt 0:00:28]} Qc2+ {[%emt 0:00:00]} 50. Kh3 {[%emt 0:00:07]}
Qe2 {[%emt 0:00:00]} (50... d2 $142 51. Qe8+ Kg7 52. Qe5+ Kf8 53. Qh8+ Ke7 54.
Qe5+ Kd7 55. Qd5+ Ke7 56. Qe5+ Kd7 57. Qd5+ Kc8 58. Qa8+ Kc7 59. Qxa7+ Kd6 60.
Qd4+ Ke6 61. Qb6+ Kd5 62. Qxh6 d1=Q 63. Qxg5+ Kc6 64. Qf6+ Kb5 65. Qe5+ Ka4 66.
Qe8+ Ka3 67. Qe3+ Ka2 68. Kh4 Qh2+ 69. Kg5 Qd8+ 70. Kf5 Qc2+ 71. Qe4 Qd5+ 72.
Kf6 Qcxe4 73. Kg7 Qg5+ 74. Kh8 Qc6 75. Kh7 Qch6#) 51. Qd4 {[%emt 0:00:35]} d2 {
[%emt 0:03:06] Black mates.} 52. Qd8+ {[%emt 0:00:53]} Kg7 {[%emt 0:00:06]} 53.
Qd4+ {[%emt 0:00:05]} Kh7 {[%emt 0:00:54]} 54. Qf6 {[%emt 0:00:06] [#]} Qc4 $1
{[%emt 0:00:43]} ({Not} 54... d1=Q 55. Qxf7+ Kh8 56. Qf8+ Kh7 57. Qf7+ Kh8 58.
Qf8+ Kh7 59. Qf7+ $11) 55. Qf3 {[%emt 0:00:08]} Kg7 {[%emt 0:00:28]} 56. b5 {
[%emt 0:01:59]} Qc2 {[%emt 0:00:44]} 57. b6 {[%emt 0:00:00]} d1=Q {[%emt 0:00:
06] Weighted Error Value: White=0.48/Black=0.13 (very precise)} 0-1

[Event "44th Chess Olympiad Open 2022"]
[Site "Chennai"]
[Date "2022.08.02"]
[Round "5.10"]
[White "Markoja, Boris"]
[Black "Svane, Rasmus"]
[Result "1/2-1/2"]
[WhiteElo "2452"]
[BlackElo "2649"]
[Annotator "RC"]
[PlyCount "61"]
[EventDate "2022.??.??"]
[TimeControl "60"]

1. d4 {[%emt 0:00:05]} d5 {[%emt 0:00:16]} 2. Nc3 {[%emt 0:00:10]} Nf6 {
[%emt 0:02:51]} 3. Bf4 {[%emt 0:00:10]} c5 {[%emt 0:02:01]} 4. e4 {[%emt 0:00:
00]} Nxe4 {[%emt 0:03:37]} 5. Nxe4 {[%emt 0:00:24]} dxe4 {[%emt 0:00:06]} 6.
dxc5 {[%emt 0:00:08]} Qa5+ {[%emt 0:00:50]} 7. c3 {[%emt 0:00:12]} Qxc5 {
[%emt 0:01:09]} 8. Qa4+ {[%emt 0:00:13]} Nc6 {[%emt 0:03:21]} 9. Qxe4 {[%emt 0:
00:00]} g6 {[%emt 0:03:14]} 10. Nf3 {[%emt 0:00:29]} Bg7 {[%emt 0:01:16]} 11.
Qe3 {[%emt 0:00:43]} Qxe3+ {[%emt 0:05:47]} 12. Bxe3 {[%emt 0:00:07]} Be6 {
[%emt 0:02:52]} 13. Be2 {[%emt 0:01:46]} O-O {[%emt 0:02:05]} 14. O-O {[%emt 0:
00:00]} Rfd8 {[%emt 0:05:02]} 15. a4 {[%emt 0:01:21]} Na5 {[%emt 0:17:11]} 16.
Rfd1 {[%emt 0:01:51]} Bc4 {[%emt 0:10:00]} 17. Rxd8+ {[%emt 0:17:42]} Rxd8 {
[%emt 0:00:07]} 18. Rd1 {[%emt 0:00:18]} Rc8 {[%emt 0:08:21]} 19. Bxc4 {
[%emt 0:19:29]} Nxc4 {[%emt 0:00:07]} 20. Rd7 {[%emt 0:00:10]} Nxb2 {[%emt 0:
00:00]} 21. Rxb7 {[%emt 0:00:37]} Nxa4 {[%emt 0:03:16]} 22. Rxa7 {[%emt 0:00:
00]} Nxc3 {[%emt 0:00:24]} 23. Rxe7 {[%emt 0:00:24]} Nd5 {[%emt 0:01:37]} 24.
Re4 {[%emt 0:03:55]} Nxe3 {[%emt 0:03:39]} 25. Rxe3 {[%emt 0:00:18]} Bd4 {
[%emt 0:01:11]} 26. Re2 {[%emt 0:03:17]} Rc3 {[%emt 0:01:31]} 27. Kf1 {[%emt 0:
00:00]} Bf6 {[%emt 0:05:22]} 28. h4 {[%emt 0:04:37]} Kg7 {[%emt 0:01:16]} 29.
Rd2 {[%emt 0:01:07]} Rb3 {[%emt 0:01:41]} 30. Ke2 {[%emt 0:00:59]} Rb4 {
[%emt 0:00:16]} 31. g3 {[%emt 0:00:18]} 1/2-1/2

[Event "44th Chess Olympiad Open 2022"]
[Site "Chennai"]
[Date "2022.08.02"]
[Round "5.11"]
[White "Sethuraman, S.P..."]
[Black "Morovic Fernandez, Ivan"]
[Result "1-0"]
[WhiteElo "2623"]
[BlackElo "2489"]
[Annotator "TA"]
[PlyCount "81"]
[EventDate "2022.??.??"]
[TimeControl "60"]

{[%evp 23,81,34,29,33,29,26,30,26,26,26,35,35,71,68,62,44,53,14,39,-16,0,0,0,0,
0,0,27,21,120,119,137,118,135,120,142,139,130,133,130,119,130,134,142,142,137,
142,142,142,142,137,150,150,189,195,211,191,4500,3851,29989,29990]} 1. e4 {
[%emt 0:00:07]} e5 {[%emt 0:00:09]} 2. Nf3 {[%emt 0:00:06]} Nc6 {[%emt 0:00:07]
} 3. Bb5 {[%emt 0:00:06]} a6 {[%emt 0:00:05]} 4. Ba4 {[%emt 0:00:06]} Nf6 {
[%emt 0:00:09]} 5. O-O {[%emt 0:00:06]} Be7 {[%emt 0:00:17]} 6. Re1 {[%emt 0:
00:00]} b5 {[%emt 0:00:08]} 7. Bb3 {[%emt 0:00:05]} d6 {[%emt 0:00:06]} 8. c3 {
[%emt 0:00:04]} O-O {[%emt 0:00:08]} 9. h3 {[%emt 0:00:08]} h6 {[%emt 0:01:17]}
10. d4 {[%emt 0:00:35]} Re8 {[%emt 0:00:11]} 11. Nbd2 {[%emt 0:00:20]} Bf8 {
[%emt 0:00:22]} 12. Bc2 {[%emt 0:09:59]} Bd7 {[%emt 0:07:10]} 13. Nf1 {[%emt 0:
00:00] C93: Closed Ruy Lopez: Smyslov Variation.} a5 {[%emt 0:04:18]} 14. Ng3 {
[%emt 0:08:31]} a4 {[%emt 0:01:28]} 15. Be3 {[%emt 0:10:28] White has an edge.}
Na5 {[%emt 0:18:05]} 16. b3 {[%emt 0:01:03]} axb3 {[%emt 0:00:47]} 17. axb3 {
[%emt 0:00:07]} c5 {[%emt 0:00:06]} 18. d5 {[%emt 0:03:13]} Qc7 {[%emt 0:01:19]
} 19. Nh2 {[%emt 0:06:49] [#]} Rec8 $146 {[%emt 0:10:13]} ({Predecessor:} 19...
Reb8 20. f4 exf4 21. Bxf4 g5 22. e5 gxf4 23. exf6 c4 24. Qh5 fxg3 25. Bh7+ Kxh7
26. Qxf7+ {0-1 (35) Papp,G (2305)-Mihok,O (2550) Ajka 2018}) 20. Qf3 {[%emt 0:
00:00][%cal Ye3h6]} Qd8 {[%emt 0:01:30]} (20... c4 $5 {[%cal Rc4b3]} 21. b4 Nb3
22. Rxa8 Rxa8 $14) 21. Nf5 {[%emt 0:03:44]} ({White should try} 21. Reb1 $14)
21... Bxf5 {[%emt 0:11:46]} 22. exf5 {[%emt 0:01:21]} c4 {[%emt 0:04:24]} 23.
b4 {[%emt 0:01:03]} Nb3 {[%emt 0:00:17]} 24. Rad1 {[%emt 0:00:23]} Ra3 {
[%emt 0:02:36]} 25. g4 {[%emt 0:09:29][%cal Yg2g4,Yg4g5]} Rca8 {[%emt 0:02:02]
White stays focused until the end.} (25... Nh7 $11 {keeps the balance.}) 26. h4
$1 $16 {[%emt 0:02:10] Threatens to win with g5.} Na1 {[%emt 0:02:36]} 27. Bb1
{[%emt 0:00:07] Hoping for g5.} Rxc3 {[%emt 0:00:45]} 28. g5 {[%emt 0:00:23]}
Nh7 {[%emt 0:04:56]} ({Not} 28... hxg5 29. hxg5 Rxe3 30. Rxe3 (30. Qxe3 Nh5 $15
)) 29. f6 $1 {[%emt 0:02:26]} g6 {[%emt 0:08:22] [#]} 30. Bxg6 {[%emt 0:01:29]
White is more active.} fxg6 {[%emt 0:04:44]} 31. Rxa1 {[%emt 0:00:05]} hxg5 {
[%emt 0:01:26]} 32. hxg5 {[%emt 0:02:51]} Nxg5 {[%emt 0:03:43]} 33. Qg4 {
[%emt 0:07:55]} Rxe3 {[%emt 0:00:38]} 34. fxe3 {[%emt 0:08:35]} Rxa1 {[%emt 0:
00:08]} 35. Rxa1 {[%emt 0:00:02]} Qxf6 {[%emt 0:00:00]} 36. Rf1 $36 {[%emt 0:
00:02] Against Qf5. White is in control.} Qe7 {[%emt 0:03:15]} 37. Nf3 {
[%emt 0:00:04] White has strong compensation.} Bh6 {[%emt 0:02:22] [#]} 38. Kg2
{[%emt 0:02:14] And now Qh4 would win.} Kg7 {[%emt 0:01:34] [#]} 39. Qh4 $1 {
[%emt 0:02:20] Black must now prevent Rh1.} e4 $2 {[%emt 0:05:53]} (39... Qf6
$2 40. Nh2 Nf3 41. Qxf6+ Kxf6 42. Kxf3 $18) (39... Qd8 40. Ra1 (40. Rh1 Nf7 $18
) 40... Nf7) 40. Nh2 $18 {[%emt 0:00:32] White threatens Ng4 and mate.} Qd8 {
[%emt 0:00:26]} 41. Ng4 {[%emt 0:30:22] Weighted Error Value: White=0.07 
(flawless) /Black=0.30} 1-0

[Event "44th Chess Olympiad Open 2022"]
[Site "Chennai"]
[Date "2022.08.02"]
[Round "5.11"]
[White "Henriquez Villagra, Cristobal"]
[Black "Ganguly, Surya Shekhar"]
[Result "1/2-1/2"]
[WhiteElo "2620"]
[BlackElo "2608"]
[Annotator "TA"]
[PlyCount "73"]
[EventDate "2022.??.??"]
[TimeControl "60"]

{[%evp 10,73,25,25,11,0,0,20,14,6,26,27,27,27,19,9,33,0,-15,-3,-13,0,-4,-10,0,
-3,-3,-7,-7,-18,-13,-14,-10,-44,-40,-51,-29,-29,-29,-36,-31,-32,-15,-16,-13,
-18,0,0,11,7,12,0,0,0,0,0,0,0,0,0,0,0,0,0,0,0]} 1. c4 {[%emt 0:00:03]
Krasenkow,Michal} Nf6 {[%emt 0:01:05]} 2. Nc3 {[%emt 0:00:24]} e6 {[%emt 0:00:
00]} 3. e4 {[%emt 0:00:14]} d5 {[%emt 0:00:00]} 4. cxd5 {[%emt 0:01:18]} exd5 {
[%emt 0:00:00]} 5. e5 {[%emt 0:00:20]} Ne4 {[%emt 0:00:08]} 6. Nf3 {[%emt 0:00:
00]} Bf5 {[%emt 0:00:58] A18: English Opening: Flohr-Mikenas System (1 c4 Nf6
2 Nc3 e6 3 e4).} 7. d3 {[%emt 0:01:29]} Nxc3 {[%emt 0:00:07]} 8. bxc3 {[%emt 0:
00:00]} c5 {[%emt 0:00:29]} 9. d4 {[%emt 0:00:17]} Qa5 {[%emt 0:01:39]} 10. Bd2
{[%emt 0:02:43]} Nc6 {[%emt 0:00:10]} 11. c4 {[%emt 0:19:30]} Qd8 {[%emt 0:00:
00]} 12. Qb3 {[%emt 0:00:03][%csl Yb7,Yd5]} Be4 {[%emt 0:01:16] [#]} 13. Rc1
$146 {[%emt 0:07:08]} (13. Qxb7 $14 Qc8 14. Qxc8+ Rxc8 15. cxd5 Bxd5 16. Rc1) (
{Predecessor:} 13. Qxb7 Rc8 14. cxd5 Bxd5 15. e6 Be7 16. exf7+ Kf8 17. Qa6 Nxd4
18. Nxd4 cxd4 19. Bb5 {1-0 (56) So,W (2770)-Aronian,L (2781) chess24.com INT
2021 CBM 202 [Krasenkow,Michal]}) 13... Be7 $11 {[%emt 0:12:39]} 14. cxd5 $1 {
[%emt 0:04:26]} Bxd5 {[%emt 0:01:31]} 15. Bc4 {[%emt 0:00:23]} ({Avoid the trap
} 15. Qxb7 $2 Nxd4 16. Bb5+ Kf8 $19) 15... Bxc4 {[%emt 0:00:34]} 16. Rxc4 {
[%emt 0:00:08]} O-O {[%emt 0:01:34][%cal Rc5d4]} 17. O-O {[%emt 0:08:39]} Qd5 {
[%emt 0:03:00][%cal Rc6d4]} 18. dxc5 {[%emt 0:10:10]} Bxc5 {[%emt 0:02:20]} 19.
Qc2 {[%emt 0:07:37]} (19. Rc3 $5 {[%cal Rb3d5]} Rfd8 20. Bg5 $15 (20. Qxb7 Rab8
$15)) 19... Bd4 {[%emt 0:10:09][%cal Yc6e5]} 20. Bf4 {[%emt 0:04:32] [#]
Strongly threatening Rd1.} Rad8 {[%emt 0:03:01]} 21. Kh1 {[%emt 0:03:22]} Bb6 {
[%emt 0:02:39]} 22. Bg3 {[%emt 0:03:29]} Qd3 {[%emt 0:02:32]} 23. Qc1 {[%emt 0:
00:00]} Rd5 {[%emt 0:02:15]} 24. h3 {[%emt 0:01:05]} Rfd8 {[%emt 0:06:05]} 25.
Kh2 {[%emt 0:03:38] [#]} Rc5 $1 {[%emt 0:10:14]} 26. Rxc5 {[%emt 0:01:10] The
position is equal.} Bxc5 {[%emt 0:00:04][%cal Yb6c5,Yc5e7,Ye7f6,Yf6c3]} 27. Re1
{[%emt 0:02:32]} Be7 {[%emt 0:06:49]} 28. e6 {[%emt 0:01:07]} fxe6 {[%emt 0:00:
27]} 29. Rxe6 {[%emt 0:00:21]} Bf6 {[%emt 0:04:45]} 30. Qe1 {[%emt 0:01:30]
Threatening mate with Re8+.} h6 {[%emt 0:01:15]} 31. Bc7 {[%emt 0:02:29]} Rf8 {
[%emt 0:02:00]} 32. Bd6 {[%emt 0:02:30]} Bc3 {[%emt 0:00:00]} 33. Qc1 {[%emt 0:
05:35]} Rxf3 {[%emt 0:03:49]} 34. gxf3 {[%emt 0:00:13] Threatens to win with
Re8+.} Kf7 {[%emt 0:00:40] Prevents Re8.} 35. Qe3 {[%emt 0:03:59]} Qd5 {
[%emt 0:00:18][%csl Ya2,Ye6]} 36. Re7+ {[%emt 0:01:12]} Nxe7 {[%emt 0:00:14]}
37. Qxe7+ {[%emt 0:00:11] Weighted Error Value: White=0.05 (flawless) /Black=0.
04 (flawless)} 1/2-1/2